[Event "Titled Tuesday Blitz May 4 2021"]
[White "Srisshhhtea"]
[Black "Poormosavi, Seyed Kian"]
[BlackFideId "12585807"]
[WhiteElo "2387"]
[BlackElo "2134"]
[Result "0-1"]
[Round "07"]
[TimeControl "180+1"]
[Date "2021.05.04"]
[WhiteClock "0:00:15"]
[BlackClock "0:01:20"]

1. d4 {[%clk 0:03:00]}  Nf6 {[%clk 0:02:59]} 2. c4 {[%clk 0:02:59]}  b6 {[%clk 0:02:58]} 3. Nc3 {[%clk 0:02:56]}  Bb7 {[%clk 0:02:57]} 4. d5 {[%clk 0:02:56]}  e5 {[%clk 0:02:54]} 5. e4 {[%clk 0:02:55]}  Bb4 {[%clk 0:02:54]} 6. Bd3 {[%clk 0:02:53]}  O-O {[%clk 0:02:54]} 7. Ne2 {[%clk 0:02:53]}  Na6 {[%clk 0:02:53]} 8. O-O {[%clk 0:02:51]}  Nc5 {[%clk 0:02:53]} 9. Bc2 {[%clk 0:02:51]}  a5 {[%clk 0:02:53]} 10. f3 {[%clk 0:02:43]}  Na6 {[%clk 0:02:49]} 11. Be3 {[%clk 0:02:40]}  Bc5 {[%clk 0:02:49]} 12. Qd2 {[%clk 0:02:40]}  Bxe3+ {[%clk 0:02:47]} 13. Qxe3 {[%clk 0:02:41]}  d6 {[%clk 0:02:47]} 14. a3 {[%clk 0:02:36]}  Qe7 {[%clk 0:02:46]} 15. Ng3 {[%clk 0:02:34]}  g6 {[%clk 0:02:46]} 16. Rae1 {[%clk 0:02:23]}  Nd7 {[%clk 0:02:44]} 17. Nb5 {[%clk 0:02:17]}  c6 {[%clk 0:02:36]} 18. dxc6 {[%clk 0:02:14]}  Bxc6 {[%clk 0:02:37]} 19. Nc3 {[%clk 0:02:13]}  Nac5 {[%clk 0:02:38]} 20. f4 {[%clk 0:02:08]}  exf4 {[%clk 0:02:37]} 21. Qxf4 {[%clk 0:02:08]}  Ne5 {[%clk 0:02:38]} 22. Nd5 {[%clk 0:01:53]}  Bxd5 {[%clk 0:02:36]} 23. exd5 {[%clk 0:01:54]}  f5 {[%clk 0:02:33]} 24. Qd4 {[%clk 0:01:44]}  Qg7 {[%clk 0:02:27]} 25. Kh1 {[%clk 0:01:28]}  Rfe8 {[%clk 0:02:22]} 26. b4 {[%clk 0:01:16]}  axb4 {[%clk 0:02:19]} 27. axb4 {[%clk 0:01:17]}  Ncd7 {[%clk 0:02:20]} 28. Qf4 {[%clk 0:00:54]}  Ra2 {[%clk 0:02:14]} 29. Re2 {[%clk 0:00:25]}  Rc8 {[%clk 0:02:09]} 30. Bxf5 {[%clk 0:00:21]}  Rxe2 {[%clk 0:02:05]} 31. Be6+ {[%clk 0:00:20]}  Kh8 {[%clk 0:02:02]} 32. Nxe2 {[%clk 0:00:21]}  Rxc4 {[%clk 0:02:00]} 33. Qf2 {[%clk 0:00:20]}  Rxb4 {[%clk 0:01:58]} 34. Nd4 {[%clk 0:00:20]}  Nd3 {[%clk 0:01:55]} 35. Qf7 {[%clk 0:00:15]}  Qxf7 {[%clk 0:01:56]} 36. Bxf7 {[%clk 0:00:15]}  Rxd4 {[%clk 0:01:55]} 37. Be6 {[%clk 0:00:15]}  N7e5 {[%clk 0:01:54]} 38. g4 {[%clk 0:00:14]}  Nf4 {[%clk 0:01:54]} 39. g5 {[%clk 0:00:13]}  Kg7 {[%clk 0:01:50]} 40. Rc1 {[%clk 0:00:10]}  Rc4 {[%clk 0:01:43]} 41. Ra1 {[%clk 0:00:09]}  Rc7 {[%clk 0:01:43]} 42. Ra6 {[%clk 0:00:08]}  Nxe6 {[%clk 0:01:40]} 43. dxe6 {[%clk 0:00:08]}  Nc4 {[%clk 0:01:41]} 44. Ra4 {[%clk 0:00:07]}  d5 {[%clk 0:01:40]} 45. Rb4 {[%clk 0:00:06]}  Re7 {[%clk 0:01:40]} 46. Rb5 {[%clk 0:00:07]}  Rxe6 {[%clk 0:01:29]} 47. Rxd5 {[%clk 0:00:07]}  Re7 {[%clk 0:01:29]} 48. Rd4 {[%clk 0:00:06]}  Ne3 {[%clk 0:01:28]} 49. Rb4 {[%clk 0:00:06]}  Rb7 {[%clk 0:01:28]} 50. Rb5 {[%clk 0:00:06]}  Nf5 {[%clk 0:01:26]} 51. h4 {[%clk 0:00:07]}  Nd4 {[%clk 0:01:26]} 52. Rb4 {[%clk 0:00:05]}  Nf3 {[%clk 0:01:25]} 53. Kg2 {[%clk 0:00:05]}  Ne5 {[%clk 0:01:25]} 54. Rb5 {[%clk 0:00:06]}  Nc4 {[%clk 0:01:24]} 55. Kg3 {[%clk 0:00:06]}  Kf7 {[%clk 0:01:25]} 56. Kf4 {[%clk 0:00:06]}  Nd6 {[%clk 0:01:25]} 57. Rb4 {[%clk 0:00:05]}  b5 {[%clk 0:01:25]} 58. Ke5 {[%clk 0:00:05]}  Ke7 {[%clk 0:01:25]} 59. Kd5 {[%clk 0:00:05]}  Kd7 {[%clk 0:01:24]} 60. Kc5 {[%clk 0:00:05]}  Rc7+ {[%clk 0:01:24]} 61. Kd5 {[%clk 0:00:05]}  Rc4 {[%clk 0:01:24]} 62. Rxb5 {[%clk 0:00:05]}  Nxb5 {[%clk 0:01:22]} 63. Kxc4 {[%clk 0:00:05]}  Nd6+ {[%clk 0:01:21]} 64. Kd5 {[%clk 0:00:06]}  Nf5 {[%clk 0:01:21]} 65. h5 {[%clk 0:00:04]}  gxh5 {[%clk 0:01:20]} 66. Ke5 {[%clk 0:00:05]}  h4 {[%clk 0:01:21]} 67. Kf4 {[%clk 0:00:05]}  Ke7 {[%clk 0:01:18]} 68. Kg4 {[%clk 0:00:06]}  Kf7 {[%clk 0:01:18]} 69. Kh3 {[%clk 0:00:06]}  Kg7 {[%clk 0:01:17]} 70. Kg2 {[%clk 0:00:07]}  Kg6 {[%clk 0:01:17]} 71. Kh2 {[%clk 0:00:08]}  Kxg5 {[%clk 0:01:18]} 72. Kg1 {[%clk 0:00:09]}  Kg4 {[%clk 0:01:18]} 73. Kg2 {[%clk 0:00:10]}  h3+ {[%clk 0:01:18]} 74. Kh2 {[%clk 0:00:11]}  Kh4 {[%clk 0:01:18]} 75. Kg1 {[%clk 0:00:10]}  Ne3 {[%clk 0:01:18]} 76. Kh1 {[%clk 0:00:11]}  Kg3 {[%clk 0:01:19]} 77. Kg1 {[%clk 0:00:11]}  Ng4 {[%clk 0:01:19]} 78. Kh1 {[%clk 0:00:12]}  Nf2+ {[%clk 0:01:20]} 79. Kg1 {[%clk 0:00:13]}  h2+ {[%clk 0:01:21]} 80. Kf1 {[%clk 0:00:13]}  h1=Q+ {[%clk 0:01:22]} 81. Ke2 {[%clk 0:00:14]}  Qe4+ {[%clk 0:01:23]} 82. Kf1 {[%clk 0:00:14]}  h5 {[%clk 0:01:19]} 83. Kg1 {[%clk 0:00:15]}  Qe1# {[%clk 0:01:20]} 0-1


[Site "https://www.chess.com"]

[Event "Titled Tuesday Blitz May 4 2021"]
[White "Stepak, Yedael"]
[Black "Abdalla, Luiz Guilherme Aurelli"]
[WhiteFideId "2800454"]
[BlackFideId "2111080"]
[WhiteElo "2146"]
[BlackElo "2152"]
[Result "1-0"]
[Round "07"]
[TimeControl "180+1"]
[Date "2021.05.04"]
[WhiteClock "0:00:05"]
[BlackClock "0:00:14"]

1. d4 {[%clk 0:02:58]}  d5 {[%clk 0:03:00]} 2. Nf3 {[%clk 0:02:51]}  c6 {[%clk 0:02:59]} 3. e3 {[%clk 0:02:51]}  Bf5 {[%clk 0:02:58]} 4. c4 {[%clk 0:02:51]}  e6 {[%clk 0:02:59]} 5. Nc3 {[%clk 0:02:51]}  h6 {[%clk 0:02:57]} 6. Qb3 {[%clk 0:02:51]}  Qb6 {[%clk 0:02:56]} 7. c5 {[%clk 0:02:51]}  Qxb3 {[%clk 0:02:56]} 8. axb3 {[%clk 0:02:51]}  Nd7 {[%clk 0:02:51]} 9. b4 {[%clk 0:02:51]}  Ngf6 {[%clk 0:02:46]} 10. b5 {[%clk 0:02:51]}  Be7 {[%clk 0:02:40]} 11. bxc6 {[%clk 0:02:47]}  bxc6 {[%clk 0:02:41]} 12. b4 {[%clk 0:02:44]}  O-O {[%clk 0:02:39]} 13. b5 {[%clk 0:02:44]}  cxb5 {[%clk 0:02:32]} 14. Bxb5 {[%clk 0:02:40]}  Rfc8 {[%clk 0:02:30]} 15. Ba6 {[%clk 0:02:37]}  Re8 {[%clk 0:02:01]} 16. c6 {[%clk 0:02:29]}  Nb6 {[%clk 0:01:59]} 17. Bb7 {[%clk 0:02:25]}  Bb4 {[%clk 0:01:50]} 18. Bd2 {[%clk 0:02:24]}  Bd3 {[%clk 0:01:26]} 19. Ne5 {[%clk 0:02:11]}  Bc4 {[%clk 0:01:20]} 20. Bxa8 {[%clk 0:01:45]}  Rxa8 {[%clk 0:01:19]} 21. Nb1 {[%clk 0:01:39]}  Bd6 {[%clk 0:00:56]} 22. Na3 {[%clk 0:01:30]}  Ba6 {[%clk 0:00:46]} 23. Nc2 {[%clk 0:01:17]}  Bb5 {[%clk 0:00:43]} 24. Ba5 {[%clk 0:01:07]}  Rc8 {[%clk 0:00:33]} 25. Nb4 {[%clk 0:01:00]}  Nc4 {[%clk 0:00:28]} 26. Nxc4 {[%clk 0:00:53]}  Bxc4 {[%clk 0:00:25]} 27. Rc1 {[%clk 0:00:45]}  Bxb4+ {[%clk 0:00:23]} 28. Bxb4 {[%clk 0:00:45]}  Rxc6 {[%clk 0:00:24]} 29. f3 {[%clk 0:00:44]}  Rb6 {[%clk 0:00:21]} 30. Bc3 {[%clk 0:00:40]}  Rb3 {[%clk 0:00:18]} 31. Kf2 {[%clk 0:00:39]}  a6 {[%clk 0:00:09]} 32. Rhd1 {[%clk 0:00:36]}  Nd7 {[%clk 0:00:07]} 33. Rd2 {[%clk 0:00:36]}  Nb6 {[%clk 0:00:07]} 34. Rb2 {[%clk 0:00:34]}  Rxb2+ {[%clk 0:00:07]} 35. Bxb2 {[%clk 0:00:32]}  a5 {[%clk 0:00:07]} 36. Ba3 {[%clk 0:00:31]}  a4 {[%clk 0:00:08]} 37. Rb1 {[%clk 0:00:31]}  Bb3 {[%clk 0:00:08]} 38. Ke2 {[%clk 0:00:29]}  Nc4 {[%clk 0:00:09]} 39. Bb4 {[%clk 0:00:28]}  Bc2 {[%clk 0:00:07]} 40. Rc1 {[%clk 0:00:26]}  Bb3 {[%clk 0:00:05]} 41. Kd3 {[%clk 0:00:24]}  g6 {[%clk 0:00:05]} 42. e4 {[%clk 0:00:21]}  Kg7 {[%clk 0:00:06]} 43. exd5 {[%clk 0:00:20]}  exd5 {[%clk 0:00:07]} 44. Ra1 {[%clk 0:00:20]}  f6 {[%clk 0:00:06]} 45. Kc3 {[%clk 0:00:19]}  g5 {[%clk 0:00:07]} 46. Bc5 {[%clk 0:00:19]}  Kg6 {[%clk 0:00:07]} 47. g4 {[%clk 0:00:19]}  h5 {[%clk 0:00:08]} 48. h3 {[%clk 0:00:19]}  hxg4 {[%clk 0:00:08]} 49. hxg4 {[%clk 0:00:19]}  f5 {[%clk 0:00:08]} 50. Rh1 {[%clk 0:00:18]}  fxg4 {[%clk 0:00:08]} 51. fxg4 {[%clk 0:00:18]}  Ne3 {[%clk 0:00:09]} 52. Rg1 {[%clk 0:00:16]}  Nc4 {[%clk 0:00:08]} 53. Re1 {[%clk 0:00:15]}  Kf6 {[%clk 0:00:08]} 54. Be7+ {[%clk 0:00:14]}  Kg6 {[%clk 0:00:08]} 55. Bd8 {[%clk 0:00:13]}  Kf7 {[%clk 0:00:06]} 56. Re7+ {[%clk 0:00:13]}  Kf8 {[%clk 0:00:05]} 57. Ra7 {[%clk 0:00:12]}  Nd6 {[%clk 0:00:05]} 58. Ra8 {[%clk 0:00:11]}  Ne4+ {[%clk 0:00:06]} 59. Kb4 {[%clk 0:00:10]}  Kf7 {[%clk 0:00:07]} 60. Bb6 {[%clk 0:00:09]}  Ke6 {[%clk 0:00:07]} 61. Bc5 {[%clk 0:00:08]}  Nf2 {[%clk 0:00:07]} 62. Re8+ {[%clk 0:00:08]}  Kf7 {[%clk 0:00:07]} 63. Rf8+ {[%clk 0:00:07]}  Kg7 {[%clk 0:00:06]} 64. Rxf2 {[%clk 0:00:07]}  Kg6 {[%clk 0:00:06]} 65. Rf5 {[%clk 0:00:07]}  Kh6 {[%clk 0:00:06]} 66. Be7 {[%clk 0:00:07]}  Kg6 {[%clk 0:00:07]} 67. Bxg5 {[%clk 0:00:06]}  Bc2 {[%clk 0:00:06]} 68. Rxd5 {[%clk 0:00:06]}  Be4 {[%clk 0:00:07]} 69. Re5 {[%clk 0:00:06]}  Bc2 {[%clk 0:00:07]} 70. Bf4 {[%clk 0:00:05]}  Bb3 {[%clk 0:00:08]} 71. d5 {[%clk 0:00:05]}  Kf7 {[%clk 0:00:09]} 72. d6 {[%clk 0:00:05]}  Kf6 {[%clk 0:00:10]} 73. d7 {[%clk 0:00:05]}  Kf7 {[%clk 0:00:10]} 74. d8=Q {[%clk 0:00:05]}  Be6 {[%clk 0:00:11]} 75. Rxe6 {[%clk 0:00:04]}  Kxe6 {[%clk 0:00:11]} 76. Kxa4 {[%clk 0:00:05]}  Kf7 {[%clk 0:00:12]} 77. Qd6 {[%clk 0:00:04]}  Kg7 {[%clk 0:00:12]} 78. Qe5+ {[%clk 0:00:04]}  Kf7 {[%clk 0:00:13]} 79. Bg5 {[%clk 0:00:04]}  Kg6 {[%clk 0:00:13]} 80. Qf6+ {[%clk 0:00:04]}  Kh7 {[%clk 0:00:14]} 81. Qf7+ {[%clk 0:00:04]}  Kh8 {[%clk 0:00:14]} 82. Bf6# {[%clk 0:00:05]} 1-0


[Site "https://www.chess.com"]

[Event "Titled Tuesday Blitz May 4 2021"]
[White "Suarez Uriel, Adrian"]
[Black "Kopjonkin, Kirill"]
[WhiteFideId "22230874"]
[BlackFideId "24140090"]
[WhiteElo "2299"]
[BlackElo "2224"]
[Result "0-1"]
[Round "07"]
[TimeControl "180+1"]
[Date "2021.05.04"]
[WhiteClock "0:00:07"]
[BlackClock "0:00:10"]

1. Nf3 {[%clk 0:03:00]}  Nf6 {[%clk 0:02:59]} 2. b3 {[%clk 0:03:00]}  g6 {[%clk 0:03:00]} 3. Bb2 {[%clk 0:03:01]}  Bg7 {[%clk 0:03:01]} 4. g3 {[%clk 0:03:01]}  O-O {[%clk 0:03:01]} 5. Bg2 {[%clk 0:03:01]}  d6 {[%clk 0:03:02]} 6. d4 {[%clk 0:03:01]}  Nbd7 {[%clk 0:03:02]} 7. O-O {[%clk 0:03:01]}  Re8 {[%clk 0:03:03]} 8. a4 {[%clk 0:03:00]}  a5 {[%clk 0:02:59]} 9. Re1 {[%clk 0:02:51]}  e5 {[%clk 0:02:54]} 10. dxe5 {[%clk 0:02:51]}  Ng4 {[%clk 0:02:54]} 11. Qc1 {[%clk 0:02:46]}  dxe5 {[%clk 0:02:49]} 12. e4 {[%clk 0:02:41]}  Nc5 {[%clk 0:02:44]} 13. Nbd2 {[%clk 0:02:28]}  b6 {[%clk 0:02:38]} 14. h3 {[%clk 0:02:27]}  Nh6 {[%clk 0:02:38]} 15. Nc4 {[%clk 0:02:24]}  f6 {[%clk 0:02:38]} 16. Ba3 {[%clk 0:02:11]}  Qe7 {[%clk 0:02:28]} 17. Ne3 {[%clk 0:02:03]}  c6 {[%clk 0:02:26]} 18. Rd1 {[%clk 0:01:55]}  Nf7 {[%clk 0:02:26]} 19. Ne1 {[%clk 0:01:55]}  Ba6 {[%clk 0:02:24]} 20. Nd3 {[%clk 0:01:52]}  Nxd3 {[%clk 0:02:12]} 21. cxd3 {[%clk 0:01:51]}  Qb7 {[%clk 0:01:57]} 22. Nc4 {[%clk 0:01:48]}  Rad8 {[%clk 0:01:54]} 23. Qe3 {[%clk 0:01:47]}  c5 {[%clk 0:01:51]} 24. Qe2 {[%clk 0:01:43]}  Bxc4 {[%clk 0:01:47]} 25. bxc4 {[%clk 0:01:41]}  Qc6 {[%clk 0:01:45]} 26. Qc2 {[%clk 0:01:40]}  Ng5 {[%clk 0:01:45]} 27. Rab1 {[%clk 0:01:37]}  Ne6 {[%clk 0:01:44]} 28. Qb3 {[%clk 0:01:27]}  Rd6 {[%clk 0:01:44]} 29. Bb2 {[%clk 0:01:23]}  Red8 {[%clk 0:01:40]} 30. Bf1 {[%clk 0:01:24]}  h5 {[%clk 0:01:38]} 31. h4 {[%clk 0:01:21]}  Bh6 {[%clk 0:01:37]} 32. Bc3 {[%clk 0:01:19]}  Kf7 {[%clk 0:01:36]} 33. Qc2 {[%clk 0:01:14]}  Ke7 {[%clk 0:01:33]} 34. Rb3 {[%clk 0:01:13]}  Qxa4 {[%clk 0:01:29]} 35. Rdb1 {[%clk 0:01:12]}  Rb8 {[%clk 0:01:05]} 36. Qb2 {[%clk 0:01:09]}  Nd4 {[%clk 0:00:46]} 37. Ra3 {[%clk 0:01:05]}  Qe8 {[%clk 0:00:34]} 38. Bxa5 {[%clk 0:00:58]}  Bc1 {[%clk 0:00:24]} 39. Qxc1 {[%clk 0:00:49]}  bxa5 {[%clk 0:00:24]} 40. Rxa5 {[%clk 0:00:38]}  Nb3 {[%clk 0:00:16]} 41. Ra7+ {[%clk 0:00:38]}  Rd7 {[%clk 0:00:17]} 42. Rxd7+ {[%clk 0:00:36]}  Qxd7 {[%clk 0:00:18]} 43. Qh6 {[%clk 0:00:28]}  Qe8 {[%clk 0:00:15]} 44. Be2 {[%clk 0:00:24]}  Rb4 {[%clk 0:00:15]} 45. Bd1 {[%clk 0:00:22]}  Nd4 {[%clk 0:00:15]} 46. Ra1 {[%clk 0:00:22]}  Rb7 {[%clk 0:00:12]} 47. f4 {[%clk 0:00:19]}  Qf8 {[%clk 0:00:12]} 48. Qxg6 {[%clk 0:00:18]}  exf4 {[%clk 0:00:11]} 49. gxf4 {[%clk 0:00:17]}  Kd6 {[%clk 0:00:09]} 50. e5+ {[%clk 0:00:17]}  Kc7 {[%clk 0:00:08]} 51. exf6 {[%clk 0:00:16]}  Rb6 {[%clk 0:00:07]} 52. Ra7+ {[%clk 0:00:14]}  Kb8 {[%clk 0:00:08]} 53. Rf7 {[%clk 0:00:15]}  Qc8 {[%clk 0:00:07]} 54. Qg7 {[%clk 0:00:12]}  Ne6 {[%clk 0:00:07]} 55. Qh7 {[%clk 0:00:11]}  Rb1 {[%clk 0:00:08]} 56. Rg7 {[%clk 0:00:08]}  Rxd1+ {[%clk 0:00:08]} 57. Kf2 {[%clk 0:00:08]}  Rxd3 {[%clk 0:00:06]} 58. Rg8 {[%clk 0:00:07]}  Rd8 {[%clk 0:00:06]} 59. f7 {[%clk 0:00:07]}  Nf8 {[%clk 0:00:05]} 60. Qe4 {[%clk 0:00:05]}  Qb7 {[%clk 0:00:02]} 61. Qe5+ {[%clk 0:00:04]}  Qc7 {[%clk 0:00:03]} 62. Kf3 {[%clk 0:00:03]}  Qxe5 {[%clk 0:00:03]} 63. fxe5 {[%clk 0:00:04]}  Kc7 {[%clk 0:00:03]} 64. Ke4 {[%clk 0:00:04]}  Kd7 {[%clk 0:00:04]} 65. Kf5 {[%clk 0:00:04]}  Ke7 {[%clk 0:00:04]} 66. e6 {[%clk 0:00:03]}  Nxe6 {[%clk 0:00:04]} 67. Rxd8 {[%clk 0:00:02]}  Nxd8 {[%clk 0:00:05]} 68. Kg5 {[%clk 0:00:02]}  Nxf7+ {[%clk 0:00:04]} 69. Kxh5 {[%clk 0:00:03]}  Kf6 {[%clk 0:00:04]} 70. Kg4 {[%clk 0:00:04]}  Ne5+ {[%clk 0:00:05]} 71. Kg3 {[%clk 0:00:03]}  Nxc4 {[%clk 0:00:05]} 72. Kf4 {[%clk 0:00:04]}  Nd6 {[%clk 0:00:06]} 73. Ke3 {[%clk 0:00:04]}  c4 {[%clk 0:00:06]} 74. Kd4 {[%clk 0:00:04]}  Kg6 {[%clk 0:00:07]} 75. Kc3 {[%clk 0:00:04]}  Kh5 {[%clk 0:00:07]} 76. Kd4 {[%clk 0:00:05]}  Kxh4 {[%clk 0:00:08]} 77. Kd5 {[%clk 0:00:06]}  c3 {[%clk 0:00:08]} 78. Kxd6 {[%clk 0:00:07]}  c2 {[%clk 0:00:09]} 79. Ke5 {[%clk 0:00:07]}  c1=Q {[%clk 0:00:10]} 0-1


[Site "https://www.chess.com"]

[Event "Titled Tuesday Blitz May 4 2021"]
[White "Suvorov, Luca"]
[Black "Borawski, Jakub"]
[WhiteFideId "12977071"]
[BlackFideId "1143000"]
[WhiteElo "2127"]
[BlackElo "2020"]
[Result "1-0"]
[Round "07"]
[TimeControl "180+1"]
[Date "2021.05.04"]
[WhiteClock "0:01:45"]
[BlackClock "0:02:04"]

1. d4 {[%clk 0:03:00]}  Nf6 {[%clk 0:02:59]} 2. c4 {[%clk 0:02:57]}  e6 {[%clk 0:03:00]} 3. Nc3 {[%clk 0:02:57]}  Bb4 {[%clk 0:03:00]} 4. e3 {[%clk 0:02:55]}  b6 {[%clk 0:03:00]} 5. Ne2 {[%clk 0:02:53]}  Bb7 {[%clk 0:03:00]} 6. a3 {[%clk 0:02:53]}  Bxc3+ {[%clk 0:03:00]} 7. Nxc3 {[%clk 0:02:54]}  O-O {[%clk 0:03:00]} 8. f3 {[%clk 0:02:53]}  d6 {[%clk 0:03:01]} 9. Bd3 {[%clk 0:02:54]}  Nbd7 {[%clk 0:03:01]} 10. O-O {[%clk 0:02:54]}  c5 {[%clk 0:03:01]} 11. Bd2 {[%clk 0:02:50]}  Rc8 {[%clk 0:03:00]} 12. Rc1 {[%clk 0:02:46]}  Qe7 {[%clk 0:02:58]} 13. Be1 {[%clk 0:02:40]}  Rfd8 {[%clk 0:02:58]} 14. Bh4 {[%clk 0:02:38]}  Nf8 {[%clk 0:02:57]} 15. d5 {[%clk 0:02:33]}  Ng6 {[%clk 0:02:55]} 16. Bxg6 {[%clk 0:02:32]}  hxg6 {[%clk 0:02:55]} 17. e4 {[%clk 0:02:31]}  Re8 {[%clk 0:02:47]} 18. dxe6 {[%clk 0:02:11]}  Qxe6 {[%clk 0:02:44]} 19. Nb5 {[%clk 0:02:11]}  Nxe4 {[%clk 0:02:21]} 20. fxe4 {[%clk 0:02:07]}  Qxe4 {[%clk 0:02:22]} 21. Qf3 {[%clk 0:01:56]}  Qxh4 {[%clk 0:02:04]} 22. Qxb7 {[%clk 0:01:48]}  Rcd8 {[%clk 0:02:04]} 23. Qxf7+ {[%clk 0:01:47]}  Kh8 {[%clk 0:02:04]} 24. Rc3 {[%clk 0:01:45]} 1-0


[Site "https://www.chess.com"]

[Event "Titled Tuesday Blitz May 4 2021"]
[White "Svidler, Peter"]
[Black "Jumabayev, Rinat"]
[WhiteFideId "4102142"]
[BlackFideId "13702661"]
[WhiteElo "2754"]
[BlackElo "2535"]
[Result "1/2-1/2"]
[Round "07"]
[TimeControl "180+1"]
[Date "2021.05.04"]
[WhiteClock "0:00:21"]
[BlackClock "0:00:03"]

1. e4 {[%clk 0:03:00]}  c6 {[%clk 0:03:00]} 2. Nc3 {[%clk 0:02:58]}  d5 {[%clk 0:03:00]} 3. Nf3 {[%clk 0:02:58]}  dxe4 {[%clk 0:02:58]} 4. Nxe4 {[%clk 0:02:58]}  Nf6 {[%clk 0:02:58]} 5. Qe2 {[%clk 0:02:59]}  Nxe4 {[%clk 0:02:56]} 6. Qxe4 {[%clk 0:02:58]}  Qd5 {[%clk 0:02:55]} 7. Qf4 {[%clk 0:02:58]}  Qf5 {[%clk 0:02:52]} 8. Qe3 {[%clk 0:02:58]}  Qe6 {[%clk 0:02:49]} 9. b3 {[%clk 0:02:57]}  Qxe3+ {[%clk 0:02:48]} 10. fxe3 {[%clk 0:02:57]}  Bf5 {[%clk 0:02:46]} 11. Bb2 {[%clk 0:02:55]}  Nd7 {[%clk 0:02:45]} 12. O-O-O {[%clk 0:02:52]}  a5 {[%clk 0:02:36]} 13. a4 {[%clk 0:02:51]}  e6 {[%clk 0:02:33]} 14. Rg1 {[%clk 0:02:46]}  h5 {[%clk 0:02:32]} 15. Bd3 {[%clk 0:02:39]}  Bxd3 {[%clk 0:02:27]} 16. cxd3 {[%clk 0:02:40]}  Nc5 {[%clk 0:02:20]} 17. Kc2 {[%clk 0:02:37]}  Na6 {[%clk 0:02:19]} 18. Bc3 {[%clk 0:02:25]}  Nb4+ {[%clk 0:02:11]} 19. Bxb4 {[%clk 0:02:26]}  Bxb4 {[%clk 0:02:11]} 20. d4 {[%clk 0:02:22]}  f6 {[%clk 0:02:03]} 21. g4 {[%clk 0:02:22]}  hxg4 {[%clk 0:02:02]} 22. Rxg4 {[%clk 0:02:21]}  Kf7 {[%clk 0:02:01]} 23. Rdg1 {[%clk 0:02:21]}  Rag8 {[%clk 0:02:01]} 24. h4 {[%clk 0:02:21]}  Rh5 {[%clk 0:02:00]} 25. Kd3 {[%clk 0:02:18]}  g6 {[%clk 0:01:54]} 26. Rf4 {[%clk 0:02:07]}  Bd6 {[%clk 0:01:48]} 27. Rfg4 {[%clk 0:02:07]}  Be7 {[%clk 0:01:27]} 28. Ke2 {[%clk 0:02:02]}  Rh6 {[%clk 0:01:25]} 29. Rf4 {[%clk 0:01:38]}  Bd6 {[%clk 0:01:11]} 30. Rfg4 {[%clk 0:01:37]}  Be7 {[%clk 0:01:03]} 31. e4 {[%clk 0:01:34]}  Ke8 {[%clk 0:00:53]} 32. d3 {[%clk 0:01:21]}  f5 {[%clk 0:00:43]} 33. R4g2 {[%clk 0:01:17]}  Bxh4 {[%clk 0:00:41]} 34. Nxh4 {[%clk 0:01:00]}  Rxh4 {[%clk 0:00:40]} 35. Rxg6 {[%clk 0:01:01]}  Rxg6 {[%clk 0:00:41]} 36. Rxg6 {[%clk 0:01:01]}  Kf7 {[%clk 0:00:39]} 37. exf5 {[%clk 0:00:59]}  Rxd4 {[%clk 0:00:29]} 38. Rxe6 {[%clk 0:00:57]}  Rb4 {[%clk 0:00:30]} 39. Ke3 {[%clk 0:00:47]}  Rxb3 {[%clk 0:00:30]} 40. Ke4 {[%clk 0:00:46]}  Rb1 {[%clk 0:00:11]} 41. Rh6 {[%clk 0:00:43]}  Re1+ {[%clk 0:00:05]} 42. Kd4 {[%clk 0:00:42]}  Rf1 {[%clk 0:00:02]} 43. Ke5 {[%clk 0:00:38]}  Re1+ {[%clk 0:00:02]} 44. Kd6 {[%clk 0:00:38]}  Rd1 {[%clk 0:00:02]} 45. Rh7+ {[%clk 0:00:35]}  Kf6 {[%clk 0:00:02]} 46. Rxb7 {[%clk 0:00:36]}  Rxd3+ {[%clk 0:00:01]} 47. Kxc6 {[%clk 0:00:36]}  Rd4 {[%clk 0:00:02]} 48. Rb6 {[%clk 0:00:33]}  Kxf5 {[%clk 0:00:01]} 49. Kb5 {[%clk 0:00:33]}  Rd5+ {[%clk 0:00:01]} 50. Ka6 {[%clk 0:00:31]}  Ke5 {[%clk 0:00:02]} 51. Rb5 {[%clk 0:00:30]}  Kd4 {[%clk 0:00:03]} 52. Kxa5 {[%clk 0:00:30]}  Rd8 {[%clk 0:00:02]} 53. Rb7 {[%clk 0:00:28]}  Kc4 {[%clk 0:00:02]} 54. Rc7+ {[%clk 0:00:28]}  Kb3 {[%clk 0:00:03]} 55. Rb7+ {[%clk 0:00:23]}  Kc4 {[%clk 0:00:03]} 56. Kb6 {[%clk 0:00:22]}  Rd6+ {[%clk 0:00:03]} 57. Ka7 {[%clk 0:00:22]}  Rd5 {[%clk 0:00:03]} 58. Ka6 {[%clk 0:00:22]}  Rd8 {[%clk 0:00:02]} 59. a5 {[%clk 0:00:22]}  Kc5 {[%clk 0:00:02]} 60. Rc7+ {[%clk 0:00:22]}  Kd6 {[%clk 0:00:02]} 61. Rc1 {[%clk 0:00:21]}  Rb8 {[%clk 0:00:03]} 62. Ka7 {[%clk 0:00:21]}  Rb2 {[%clk 0:00:03]} 63. a6 {[%clk 0:00:21]}  Kd7 {[%clk 0:00:04]} 64. Ka8 {[%clk 0:00:21]}  Rb3 {[%clk 0:00:04]} 65. a7 {[%clk 0:00:21]}  Rb2 {[%clk 0:00:03]} 66. Rc7+ {[%clk 0:00:21]}  Kxc7 {[%clk 0:00:03]} 1/2-1/2


[Site "https://www.chess.com"]

[Event "Titled Tuesday Blitz May 4 2021"]
[White "Sztokbant, Bernardo Vainzoff"]
[Black "Erdogdu, Mert"]
[WhiteFideId "2115956"]
[BlackFideId "6301495"]
[WhiteElo "2264"]
[BlackElo "2485"]
[Result "0-1"]
[Round "07"]
[TimeControl "180+1"]
[Date "2021.05.04"]
[WhiteClock "0:00:01"]
[BlackClock "0:00:33"]

1. e4 {[%clk 0:03:00]}  c5 {[%clk 0:02:53]} 2. Nf3 {[%clk 0:03:00]}  d6 {[%clk 0:02:54]} 3. d4 {[%clk 0:03:00]}  cxd4 {[%clk 0:02:55]} 4. Nxd4 {[%clk 0:02:59]}  Nf6 {[%clk 0:02:55]} 5. Nc3 {[%clk 0:03:00]}  a6 {[%clk 0:02:56]} 6. Be2 {[%clk 0:02:57]}  e6 {[%clk 0:02:55]} 7. O-O {[%clk 0:02:56]}  Be7 {[%clk 0:02:55]} 8. f4 {[%clk 0:02:56]}  Qc7 {[%clk 0:02:55]} 9. Qe1 {[%clk 0:02:54]}  O-O {[%clk 0:02:52]} 10. Qg3 {[%clk 0:02:50]}  Nc6 {[%clk 0:02:50]} 11. Be3 {[%clk 0:02:50]}  Bd7 {[%clk 0:02:50]} 12. Nb3 {[%clk 0:02:40]}  b5 {[%clk 0:02:49]} 13. a3 {[%clk 0:02:38]}  b4 {[%clk 0:02:45]} 14. axb4 {[%clk 0:02:38]}  Nxb4 {[%clk 0:02:46]} 15. Rac1 {[%clk 0:02:25]}  Rab8 {[%clk 0:02:41]} 16. Nd4 {[%clk 0:02:25]}  Rfe8 {[%clk 0:02:28]} 17. Kh1 {[%clk 0:02:22]}  Bf8 {[%clk 0:02:24]} 18. Bf3 {[%clk 0:02:02]}  g6 {[%clk 0:02:14]} 19. Qh4 {[%clk 0:01:55]}  Bg7 {[%clk 0:01:57]} 20. Rfe1 {[%clk 0:01:38]}  e5 {[%clk 0:01:53]} 21. Nde2 {[%clk 0:01:30]}  Bc6 {[%clk 0:01:42]} 22. f5 {[%clk 0:01:26]}  d5 {[%clk 0:01:28]} 23. exd5 {[%clk 0:01:08]}  Nbxd5 {[%clk 0:01:19]} 24. Nxd5 {[%clk 0:01:02]}  Nxd5 {[%clk 0:01:19]} 25. Bxd5 {[%clk 0:00:44]}  Bxd5 {[%clk 0:01:18]} 26. f6 {[%clk 0:00:41]}  Bh8 {[%clk 0:01:05]} 27. c4 {[%clk 0:00:30]}  Ba8 {[%clk 0:00:59]} 28. Rc2 {[%clk 0:00:16]}  Qc6 {[%clk 0:00:53]} 29. Qh3 {[%clk 0:00:12]}  Bxf6 {[%clk 0:00:50]} 30. Rf1 {[%clk 0:00:12]}  Bg7 {[%clk 0:00:49]} 31. Ng3 {[%clk 0:00:09]}  f5 {[%clk 0:00:48]} 32. Bh6 {[%clk 0:00:07]}  Bxh6 {[%clk 0:00:40]} 33. Qxh6 {[%clk 0:00:08]}  f4 {[%clk 0:00:40]} 34. Nf5 {[%clk 0:00:02]}  gxf5 {[%clk 0:00:38]} 35. Qg5+ {[%clk 0:00:01]}  Qg6 {[%clk 0:00:39]} 36. Qh4 {[%clk 0:00:02]}  Kh8 {[%clk 0:00:36]} 37. Rd1 {[%clk 0:00:01]}  f3 {[%clk 0:00:34]} 38. gxf3 {[%clk 0:00:01]}  Bxf3+ {[%clk 0:00:33]} 0-1


[Site "https://www.chess.com"]